fUST/lending_fUST_20250601
["ID","MTS","AMOUNT","RATE_DAILY","PERIOD"]
[363499701,1748743839887,-430.97180903,0.00018395,2]
[363499703,1748743839900,-430.0,0.00018395,2]
[363499705,1748743839910,-510.0,0.00018396,2]
[363499707,1748743839919,-500.0,0.00018425,2]
[363499710,1748743839930,-151.0,0.00018425,2]
[363499712,1748743839941,-350.07492668,0.00018452,2]
[363499713,1748743839951,-430.0,0.0001849,2]
[363499716,1748743839960,-430.0,0.0001849,2]
[363499718,1748743839972,-430.0,0.0001849,2]
[363499720,1748743839981,-430.0,0.0001849,2]
[363499722,1748743839990,-430.0,0.0001849,2]
[363499724,1748743840001,-430.0,0.0001849,2]
[363499725,1748743840011,-430.0,0.0001849,2]
[363499727,1748743840020,-430.0,0.0001849,2]
[363499730,1748743840030,-430.0,0.0001849,2]
[363499732,1748743840040,-430.0,0.0001849,2]
[363499734,1748743840049,-430.0,0.0001849,2]
[363499736,1748743840059,-430.0,0.0001849,2]
[363499738,1748743840069,-430.0,0.0001849,2]
[363499740,1748743840078,-674.77,0.0001849,2]
[363499742,1748743840087,-488.19,0.00018587,2]
[363499744,1748743840097,-783.77,0.00018587,2]
[363499746,1748743840106,-585.5,0.00018587,2]
[363499748,1748743840116,-755.95,0.00018587,2]
[363499750,1748743840126,-548.91,0.00018587,2]
[363499752,1748743840136,-966.15809445,0.0001859,2]
[363499754,1748743840145,-430.0,0.00018623,2]
[363499756,1748743840155,-430.0,0.00018623,2]
[363499758,1748743840165,-430.0,0.00018623,2]
[363499760,1748743840174,-199.08745248,0.00018623,2]
[363499762,1748743840187,-430.0,0.00018623,2]
[363499764,1748743840197,-430.0,0.00018623,2]
[363499766,1748743840207,-444.28826946,0.00018623,2]
[363499768,1748743840217,-1303.12,0.00018623,2]
[363499771,1748743840227,-430.0,0.00018623,2]
[363499773,1748743840236,-456.74942035,0.00018623,2]
[363499775,1748743840245,-430.0,0.00018623,2]
[363499777,1748743840255,-430.0,0.00018623,2]
[363499779,1748743840265,-430.0,0.00018623,2]
[363499781,1748743840274,-430.0,0.00018623,2]
[363499783,1748743840284,-430.0,0.00018623,2]
[363499786,1748743840293,-430.0,0.00018623,2]
[363499788,1748743840302,-430.0,0.00018623,2]
[363499790,1748743840313,-430.0,0.00018623,2]
[363499792,1748743840322,-430.0,0.00018623,2]
[363499794,1748743840332,-430.0,0.00018623,2]
[363499796,1748743840342,-430.0,0.00018623,2]
[363499798,1748743840351,-430.0,0.00018623,2]
[363499800,1748743840361,-404.89270607,0.00018623,2]
[363499803,1748743840371,-430.0,0.00018623,2]
[363499805,1748743840381,-430.0,0.00018623,2]
[363499807,1748743840390,-265.07714555,0.00018623,2]
[363499809,1748743840400,-430.0,0.00018623,2]
[363499811,1748743840409,-430.0,0.00018623,2]
[363499813,1748743840419,-430.0,0.00018623,2]
[363499815,1748743840428,-876.69,0.00018623,2]
[363499817,1748743840438,-200.52497723,0.00018623,2]
[363499819,1748743840447,-430.0,0.00018623,2]
[363499821,1748743840456,-430.0,0.00018623,2]
[363499823,1748743840466,-430.0,0.00018624,2]
[363499825,1748743840476,-160.0,0.00018662,2]
[363499827,1748743840485,-842.5625,0.00018662,2]
[363499829,1748743840495,-160.0,0.00018662,2]
[363499831,1748743840505,-160.0,0.00018662,2]
[363499833,1748743840514,-160.0,0.00018662,2]
[363499836,1748743840524,-160.0,0.00018662,2]
[363499837,1748743840533,-423.51412927,0.00018662,2]
[363499839,1748743840544,-229.3709046,0.00018662,2]
[363499842,1748743840554,-430.0,0.00018667,2]
[363499844,1748743840564,-430.0,0.00018667,2]
[363499846,1748743840573,-571.3,0.00018668,2]
[363499848,1748743840585,-430.0,0.00018669,2]
[363499850,1748743840594,-430.0,0.00018669,2]
[363499852,1748743840604,-430.0,0.00018669,2]
[363499854,1748743840613,-430.0,0.00018669,2]
[363499856,1748743840623,-500.0,0.00018671,2]
[363499858,1748743840632,-500.0,0.00018671,2]
[363499860,1748743840642,-500.0,0.00018671,2]
[363499862,1748743840651,-235.75349433,0.00018671,2]
[363499864,1748743840661,-500.0,0.00018671,2]
[363499866,1748743840670,-500.0,0.00018671,2]
[363499868,1748743840683,-285.37382879,0.00018671,2]
[363499870,1748743840692,-193.252185,0.00018672,2]
[363499872,1748743840702,-780.059178,0.00018672,2]
[363499874,1748743840712,-780.059178,0.00018672,2]
[363499876,1748743840722,-874.503187,0.00018752,2]
[363499878,1748743840732,-874.503187,0.00018752,2]
[363499880,1748743840743,-430.0,0.00018764,2]
[363499882,1748743840753,-430.0,0.00018764,2]
[363499884,1748743840763,-430.0,0.00018764,2]
[363499886,1748743840773,-430.0,0.00018764,2]
[363499888,1748743840783,-430.0,0.00018764,2]
[363499890,1748743840793,-430.0,0.00018764,2]
[363499892,1748743840802,-430.0,0.00018764,2]
[363499894,1748743840812,-430.0,0.00018764,2]
[363499896,1748743840822,-430.0,0.00018764,2]
[363499910,1748743840955,-430.0,0.00018764,2]
[363499912,1748743840966,-430.0,0.00018764,2]
[363499914,1748743840977,-430.0,0.00018764,2]
[363499916,1748743840987,-674.77,0.00018764,2]
[363499918,1748743840998,-966.15809445,0.00018831,2]
[363499921,1748743841008,-488.19,0.00018861,2]
[363499923,1748743841017,-783.77,0.00018861,2]
[363499925,1748743841027,-585.5,0.00018861,2]
[363499927,1748743841036,-755.95,0.00018861,2]
[363499929,1748743841046,-548.91,0.00018861,2]
[363499931,1748743841056,-521.96362287,0.00018897,2]
[363499933,1748743841066,-430.0,0.00018897,2]
[363499935,1748743841075,-430.0,0.00018897,2]
[363499937,1748743841086,-1303.12,0.00018897,2]
[363499939,1748743841096,-430.0,0.00018897,2]
[363499941,1748743841105,-430.0,0.00018897,2]
[363499943,1748743841115,-430.0,0.00018897,2]
[363499945,1748743841124,-430.0,0.00018897,2]
[363499947,1748743841134,-430.0,0.00018897,2]
[363499949,1748743841144,-430.0,0.00018897,2]
[363499951,1748743841153,-430.0,0.00018897,2]
[363499953,1748743841163,-430.0,0.00018897,2]
[363499955,1748743841174,-430.0,0.00018897,2]
[363499957,1748743841183,-430.0,0.00018897,2]
[363499959,1748743841192,-430.0,0.00018897,2]
[363499961,1748743841202,-430.0,0.00018897,2]
[363499963,1748743841211,-430.0,0.00018897,2]
[363499965,1748743841220,-430.0,0.00018897,2]
[363499967,1748743841230,-430.0,0.00018897,2]
[363499969,1748743841240,-430.0,0.00018897,2]
[363499971,1748743841251,-430.0,0.00018897,2]
[363499973,1748743841260,-430.0,0.00018897,2]
[363499975,1748743841270,-876.69,0.00018897,2]
[363499977,1748743841280,-430.0,0.00018897,2]
[363499979,1748743841289,-430.0,0.00018897,2]
[363499981,1748743841298,-430.0,0.00018898,2]
[363499983,1748743841308,-430.0,0.00018941,2]
[363499985,1748743841317,-571.3,0.00018942,2]
[363499987,1748743841328,-161.7055218,0.00018942,2]
[363499989,1748743841337,-430.0,0.00018943,2]
[363499991,1748743841346,-430.0,0.00019038,2]
[363499993,1748743841356,-430.0,0.00019038,2]
[363499995,1748743841365,-430.0,0.00019038,2]
[363499998,1748743841374,-430.0,0.00019038,2]
[363500000,1748743841384,-430.0,0.00019038,2]
[363500002,1748743841393,-430.0,0.00019038,2]
[363500004,1748743841402,-430.0,0.00019038,2]
[363500006,1748743841411,-430.0,0.00019038,2]
[363500008,1748743841420,-430.0,0.00019038,2]
[363500010,1748743841430,-430.0,0.00019038,2]
[363500012,1748743841440,-430.0,0.00019038,2]
[363500014,1748743841450,-674.77,0.00019038,2]
[363500016,1748743841460,-966.15809445,0.00019072,2]
[363500018,1748743841470,-500.93652479,0.00019094,2]
[363500020,1748743841480,-500.0,0.000191,2]
[363500022,1748743841490,-1905.83,0.00019129,2]
[363500024,1748743841500,-488.19,0.00019135,2]
[363500026,1748743841510,-783.77,0.00019135,2]
[363500028,1748743841520,-585.5,0.00019135,2]
[363500030,1748743841530,-755.95,0.00019135,2]
[363500032,1748743841539,-548.91,0.00019135,2]
[363500034,1748743841549,-500.18,0.00019151,3]
[363500036,1748743841559,-250.09,0.00019151,3]
[363500038,1748743841569,-750.29,0.00019151,3]
[363500040,1748743841578,-1000.35,0.00019152,3]
[363500042,1748743841588,-2000.7,0.00019161,3]
[363500044,1748743841598,-3502.03,0.00019162,3]
[363500046,1748743841607,-430.0,0.00019171,2]
[363500048,1748743841617,-430.0,0.00019171,2]
[363500050,1748743841626,-1303.12,0.00019171,2]
[363500052,1748743841635,-430.0,0.00019171,2]
[363500054,1748743841646,-430.0,0.00019171,2]
[363500056,1748743841656,-430.0,0.00019171,2]
[363500058,1748743841666,-329.07,0.00019171,2]
[363500060,1748743841676,-430.0,0.00019171,2]
[363500062,1748743841686,-430.0,0.00019171,2]
[363500064,1748743841695,-430.0,0.00019171,2]
[363500066,1748743841705,-430.0,0.00019171,2]
[363500068,1748743841715,-430.0,0.00019171,2]
[363500070,1748743841724,-430.0,0.00019171,2]
[363500072,1748743841734,-430.0,0.00019171,2]
[363500074,1748743841744,-430.0,0.00019171,2]
[363500076,1748743841754,-430.0,0.00019171,2]
[363500078,1748743841763,-430.0,0.00019171,2]
[363500080,1748743841773,-430.0,0.00019171,2]
[363500082,1748743841783,-430.0,0.00019171,2]
[363500084,1748743841793,-409.75034397,0.00019171,2]
[363500086,1748743841802,-430.0,0.00019171,2]
[363500088,1748743841812,-876.69,0.00019171,2]
[363500090,1748743841821,-437.66,0.00019171,2]
[363500092,1748743841831,-430.0,0.00019172,2]
[363500094,1748743841840,-430.0,0.00019178,2]
[363500096,1748743841850,-430.0,0.00019178,2]
[363500098,1748743841859,-430.0,0.00019178,2]
[363500101,1748743841869,-500.0,0.00019178,2]
[363500103,1748743841879,-500.0,0.00019178,2]
[363500105,1748743841889,-253.41732533,0.00019178,2]
[363500107,1748743841902,-500.0,0.00019178,2]
[363500109,1748743841911,-500.0,0.00019178,2]
[363500111,1748743841920,-500.0,0.00019178,2]
[363500113,1748743841929,-164.361843,0.00019178,2]
[363500115,1748743841941,-500.18900707,0.00019179,2]
[363500117,1748743841951,-430.0,0.00019215,2]
[363500119,1748743841961,-430.0,0.00019216,2]
[363500121,1748743841971,-571.3,0.00019216,2]
[363500123,1748743841980,-193.252185,0.00019217,2]
[363500125,1748743841989,-780.059178,0.00019217,2]
[363500127,1748743841999,-780.059178,0.00019217,2]
[363500129,1748743842009,-874.503187,0.00019218,2]
[363500131,1748743842018,-874.503187,0.00019218,2]
[363500133,1748743842027,-430.0,0.00019312,2]
[363500135,1748743842037,-430.0,0.00019312,2]
[363500137,1748743842047,-430.0,0.00019312,2]
[363500139,1748743842056,-430.0,0.00019312,2]
[363500141,1748743842066,-430.0,0.00019312,2]
[363500143,1748743842075,-451.64,0.00019312,2]
[363500145,1748743842085,-161.89434865,0.00019312,2]
[363500147,1748743842095,-430.0,0.00019312,2]
[363500149,1748743842105,-430.0,0.00019312,2]
[363500151,1748743842114,-430.0,0.00019312,2]
[363500153,1748743842123,-430.0,0.00019312,2]
[363500155,1748743842133,-674.77,0.00019312,2]
[363500157,1748743842142,-966.15809445,0.00019314,2]
[363500159,1748743842152,-488.19,0.00019409,2]
[363500161,1748743842161,-783.77,0.00019409,2]
[363500163,1748743842170,-585.5,0.00019409,2]
[363500165,1748743842180,-755.95,0.00019409,2]
[363500167,1748743842190,-548.91,0.00019409,2]
[363500169,1748743842200,-430.0,0.00019445,2]
[363500171,1748743842210,-430.0,0.00019445,2]
[363500173,1748743842219,-1303.12,0.00019445,2]
[363500175,1748743842229,-430.0,0.00019445,2]
[363500177,1748743842238,-430.0,0.00019445,2]
[363500179,1748743842247,-430.0,0.00019445,2]
[363500181,1748743842256,-430.0,0.00019445,2]
[363500183,1748743842266,-430.0,0.00019445,2]
[363500185,1748743842275,-430.0,0.00019445,2]
[363500187,1748743842285,-430.0,0.00019445,2]
[363500189,1748743842294,-430.0,0.00019445,2]
[363500191,1748743842304,-430.0,0.00019445,2]
[363500193,1748743842314,-430.0,0.00019445,2]
[363500195,1748743842323,-430.0,0.00019445,2]
[363500197,1748743842333,-430.0,0.00019445,2]
[363500199,1748743842342,-430.0,0.00019445,2]
[363500201,1748743842352,-430.0,0.00019445,2]
[363500203,1748743842362,-876.69,0.00019445,2]
[363500205,1748743842371,-430.0,0.00019446,2]
[363500207,1748743842381,-430.0,0.00019489,2]
[363500209,1748743842391,-430.0,0.0001949,2]
[363500211,1748743842401,-571.3,0.0001949,2]
[363500213,1748743842410,-874.503187,0.00019494,2]
[363500215,1748743842420,-874.503187,0.00019494,2]
[363500217,1748743842429,-193.252185,0.00019494,2]
[363500219,1748743842440,-780.059178,0.00019494,2]
[363500221,1748743842449,-780.059178,0.00019494,2]
[363500223,1748743842459,-966.15809445,0.00019555,2]
[363500225,1748743842468,-430.0,0.00019586,2]
[363500227,1748743842479,-430.0,0.00019586,2]
[363500230,1748743842489,-430.0,0.00019586,2]
[363500232,1748743842499,-430.0,0.00019586,2]
[363500234,1748743842508,-430.0,0.00019586,2]
[363500236,1748743842518,-430.0,0.00019586,2]
[363500238,1748743842527,-430.0,0.00019586,2]
[363500240,1748743842537,-430.0,0.00019586,2]
[363500242,1748743842546,-430.0,0.00019586,2]
[363500244,1748743842556,-674.77,0.00019586,2]
[363500246,1748743842566,-461.5077198,0.00019619,2]
[363500248,1748743842575,-495.275,0.00019678,2]
[363500250,1748743842585,-488.19,0.00019683,2]
[363500252,1748743842595,-783.77,0.00019683,2]
[363500254,1748743842605,-585.5,0.00019683,2]
[363500256,1748743842615,-755.95,0.00019683,2]
[363500258,1748743842625,-548.91,0.00019683,2]
[363500260,1748743842635,-160.0,0.00019683,3]
[363500262,1748743842645,-430.0,0.00019719,2]
[363500264,1748743842655,-430.0,0.00019719,2]
[363500266,1748743842665,-1303.12,0.00019719,2]
[363500268,1748743842675,-430.0,0.00019719,2]
[363500270,1748743842685,-430.0,0.00019719,2]
[363500272,1748743842694,-430.0,0.00019719,2]
[363500274,1748743842703,-430.0,0.00019719,2]
[363500276,1748743842713,-430.0,0.00019719,2]
[363500278,1748743842722,-430.0,0.00019719,2]
[363500280,1748743842732,-430.0,0.00019719,2]
[363500282,1748743842742,-430.0,0.00019719,2]
[363500284,1748743842751,-430.0,0.00019719,2]
[363500286,1748743842760,-430.0,0.00019719,2]
[363500288,1748743842770,-430.0,0.00019719,2]
[363500290,1748743842779,-430.0,0.00019719,2]
[363500292,1748743842789,-430.0,0.00019719,2]
[363500294,1748743842798,-430.0,0.00019719,2]
[363500296,1748743842807,-876.69,0.00019719,2]
[363500298,1748743842816,-430.0,0.0001972,2]
[363500300,1748743842826,-430.0,0.00019764,2]
[363500302,1748743842836,-571.3,0.00019764,2]
[363500304,1748743842845,-966.15809445,0.00019797,2]
[363500306,1748743842855,-430.0,0.0001986,2]
[363500308,1748743842864,-430.0,0.0001986,2]
[363500310,1748743842874,-430.0,0.0001986,2]
[363500312,1748743842883,-430.0,0.0001986,2]
[363500314,1748743842893,-430.0,0.0001986,2]
[363500316,1748743842905,-462.97430767,0.0001986,2]
[363500318,1748743842914,-430.0,0.0001986,2]
[363500320,1748743842924,-430.0,0.0001986,2]
[363500322,1748743842935,-430.0,0.0001986,2]
[363500324,1748743842945,-674.77,0.0001986,2]
[363500326,1748743842954,-488.19,0.00019957,2]
[363500328,1748743842963,-783.77,0.00019957,2]
[363500330,1748743842973,-585.5,0.00019957,2]
[363500331,1748743842983,-755.95,0.00019957,2]
[363500333,1748743842992,-548.91,0.00019957,2]
[363500335,1748743843002,-2541.11,0.0001996,2]
[363500337,1748743843011,-500.0,0.00019964,2]
[363500339,1748743843021,-14853.06755556,0.0001999,2]
[363500341,1748743843031,-430.0,0.00019993,2]
[363500343,1748743843040,-1303.12,0.00019993,2]
[363500345,1748743843049,-430.0,0.00019993,2]
[363500347,1748743843058,-430.0,0.00019993,2]
[363500349,1748743843067,-430.0,0.00019993,2]
[363500351,1748743843077,-430.0,0.00019993,2]
[363500353,1748743843086,-430.0,0.00019993,2]
[363500355,1748743843095,-430.0,0.00019993,2]
[363500357,1748743843105,-430.0,0.00019993,2]
[363500358,1748743843114,-430.0,0.00019993,2]
[363500360,1748743843124,-201.84,0.00019993,2]
[363500362,1748743843133,-430.0,0.00019993,2]
[363500364,1748743843142,-430.0,0.00019993,2]
[363500366,1748743843151,-430.0,0.00019993,2]
[363500368,1748743843162,-430.0,0.00019993,2]
[363500370,1748743843172,-430.0,0.00019993,2]
[363500372,1748743843182,-876.69,0.00019993,2]
[363500375,1748743843193,-430.0,0.00019994,2]
[363500376,1748743843202,-966.15809445,0.00020038,2]
[363500378,1748743843211,-430.0,0.00020038,2]
[363500380,1748743843221,-571.3,0.00020038,2]
[363500382,1748743843230,-874.503187,0.00020101,2]
[363500384,1748743843241,-874.503187,0.00020101,2]
[363500387,1748743843251,-193.252185,0.00020101,2]
[363500390,1748743843262,-780.059178,0.00020101,2]
[363500393,1748743843275,-780.059178,0.00020101,2]
[363500396,1748743843285,-430.0,0.00020134,2]
[363500398,1748743843294,-430.0,0.00020134,2]
[363500400,1748743843303,-430.0,0.00020134,2]
[363500402,1748743843313,-430.0,0.00020134,2]
[363500404,1748743843322,-430.0,0.00020134,2]
[363500406,1748743843331,-430.0,0.00020134,2]
[363500408,1748743843341,-430.0,0.00020134,2]
[363500410,1748743843351,-430.0,0.00020134,2]
[363500412,1748743843362,-674.77,0.00020134,2]
[363500414,1748743843372,-540.816494,0.00020187,2]
[363500416,1748743843381,-488.19,0.00020231,2]
[363500418,1748743843390,-783.77,0.00020231,2]
[363500420,1748743843400,-585.5,0.00020231,2]
[363500422,1748743843409,-755.95,0.00020231,2]
[363500424,1748743843419,-548.91,0.00020231,2]
[363500426,1748743843428,-488.13325569,0.00020267,2]
[363500428,1748743843439,-1303.12,0.00020267,2]
[363500430,1748743843448,-430.0,0.00020267,2]
[363500432,1748743843457,-430.0,0.00020267,2]
[363500434,1748743843467,-430.0,0.00020267,2]
[363500436,1748743843477,-430.0,0.00020267,2]
[363500438,1748743843486,-430.0,0.00020267,2]
[363500440,1748743843496,-430.0,0.00020267,2]
[363500442,1748743843506,-430.0,0.00020267,2]
[363500444,1748743843515,-430.0,0.00020267,2]
[363500446,1748743843524,-430.0,0.00020267,2]
[363500448,1748743843533,-430.0,0.00020267,2]
[363500450,1748743843543,-430.0,0.00020267,2]
[363500451,1748743843552,-430.0,0.00020267,2]
[363500453,1748743843562,-430.0,0.00020267,2]
[363500455,1748743843571,-876.69,0.00020267,2]
[363500457,1748743843581,-430.0,0.00020268,2]
[363500459,1748743843592,-966.15809445,0.00020279,3]
[363500461,1748743843602,-430.0,0.00020312,2]
[363500463,1748743843612,-571.3,0.00020312,2]
[363500465,1748743843621,-461.50771977,0.00020339,2]
[363500467,1748743843630,-874.503187,0.00020375,2]
[363500469,1748743843639,-874.503187,0.00020375,2]
[363500471,1748743843649,-193.252185,0.00020375,2]
[363500473,1748743843659,-780.059178,0.00020375,2]
[363500475,1748743843668,-780.059178,0.00020375,2]
[363500477,1748743843678,-430.0,0.00020408,2]
[363500479,1748743843690,-430.0,0.00020408,2]
[363500481,1748743843699,-430.0,0.00020408,2]
[363500483,1748743843709,-430.0,0.00020408,2]
[363500485,1748743843719,-430.0,0.00020408,2]
[363500487,1748743843728,-430.0,0.00020408,2]
[363500488,1748743843738,-430.0,0.00020408,2]
[363500490,1748743843748,-430.0,0.00020408,2]
[363500492,1748743843758,-674.77,0.00020408,2]
[363500494,1748743843768,-488.19,0.00020505,2]
[363500496,1748743843778,-783.77,0.00020505,2]
[363500498,1748743843788,-585.5,0.00020505,2]
[363500500,1748743843797,-755.95,0.00020505,2]
[363500502,1748743843807,-548.91,0.00020505,2]
[363500504,1748743843816,-966.15809445,0.00020521,3]
[363500506,1748743843826,-1000.36,0.00020521,3]
[363500508,1748743843836,-500.18,0.00020521,3]
[363500510,1748743843846,-2000.7,0.00020522,3]
[363500512,1748743843855,-4001.4,0.00020531,3]
[363500515,1748743843865,-7004.06,0.00020532,3]
[363500517,1748743843875,-1303.12,0.00020541,2]
[363500519,1748743843885,-430.0,0.00020541,2]
[363500521,1748743843897,-430.0,0.00020541,2]
[363500523,1748743843907,-430.0,0.00020541,2]
[363500537,1748743844034,-430.0,0.00020541,2]
[363500539,1748743844044,-430.0,0.00020541,2]
[363500541,1748743844053,-430.0,0.00020541,2]
[363500543,1748743844063,-430.0,0.00020541,2]
[363500544,1748743844072,-430.0,0.00020541,2]
[363500546,1748743844081,-430.0,0.00020541,2]
[363500548,1748743844091,-430.0,0.00020541,2]
[363500550,1748743844100,-430.0,0.00020541,2]
[363500552,1748743844110,-430.0,0.00020541,2]
[363500554,1748743844119,-430.0,0.00020541,2]
[363500556,1748743844129,-876.69,0.00020541,2]
[363500558,1748743844138,-430.0,0.00020542,2]
[363500560,1748743844148,-430.0,0.00020586,2]
[363500562,1748743844158,-571.3,0.00020586,2]
[363500564,1748743844168,-874.503187,0.000206,2]
[363500566,1748743844178,-874.503187,0.000206,2]
[363500568,1748743844187,-193.252185,0.000206,2]
[363500570,1748743844197,-780.059178,0.000206,2]
[363500572,1748743844207,-780.059178,0.000206,2]
[363500574,1748743844216,-6238.09,0.000206,2]
[363500576,1748743844224,-430.0,0.00020682,2]
[363500577,1748743844234,-430.0,0.00020682,2]
[363500579,1748743844244,-430.0,0.00020682,2]
[363500581,1748743844254,-167.28746273,0.00020682,2]
[363500583,1748743844263,-472.61578185,0.00020682,2]
[363500585,1748743844272,-430.0,0.00020682,2]
[363500587,1748743844282,-430.0,0.00020682,2]
[363500589,1748743844293,-430.0,0.00020682,2]
[363500591,1748743844303,-674.77,0.00020682,2]
[363500593,1748743844313,-966.15809445,0.00020762,3]
[363500595,1748743844322,-207.4,0.00020764,2]
[363500597,1748743844332,-300.0,0.00020764,2]
[363500599,1748743844342,-300.0,0.00020764,2]
[363500601,1748743844353,-300.0,0.00020764,2]
[363500603,1748743844363,-300.0,0.00020764,2]
[363500605,1748743844373,-300.0,0.00020764,2]
[363500607,1748743844382,-300.0,0.00020764,2]
[363500609,1748743844392,-300.0,0.00020764,2]
[363500611,1748743844401,-300.0,0.00020764,2]
[363500613,1748743844411,-300.0,0.00020764,2]
[363500615,1748743844420,-300.0,0.00020764,2]
[363500617,1748743844430,-300.0,0.00020764,2]
[363500619,1748743844439,-300.0,0.00020764,2]
[363500621,1748743844449,-300.0,0.00020764,2]
[363500622,1748743844458,-300.0,0.00020764,2]
[363500624,1748743844468,-317.28920802,0.00020764,2]
[363500626,1748743844478,-488.19,0.00020779,2]
[363500628,1748743844487,-783.77,0.00020779,2]
[363500630,1748743844498,-585.5,0.00020779,2]
[363500632,1748743844507,-755.95,0.00020779,2]
[363500634,1748743844517,-548.91,0.00020779,2]
[363500636,1748743844527,-3176.39,0.00020792,2]
[363500638,1748743844537,-1303.12,0.00020815,2]
[363500640,1748743844546,-430.0,0.00020815,2]
[363500642,1748743844556,-430.0,0.00020815,2]
[363500643,1748743844566,-430.0,0.00020815,2]
[363500645,1748743844577,-430.0,0.00020815,2]
[363500647,1748743844587,-430.0,0.00020815,2]
[363500649,1748743844597,-430.0,0.00020815,2]
[363500651,1748743844607,-430.0,0.00020815,2]
[363500653,1748743844617,-430.0,0.00020815,2]
[363500655,1748743844627,-415.20521261,0.00020815,2]
[363500657,1748743844637,-430.0,0.00020815,2]
[363500659,1748743844647,-430.0,0.00020815,2]
[363500661,1748743844657,-430.0,0.00020815,2]
[363500663,1748743844667,-165.47460962,0.00020815,2]
[363500665,1748743844676,-876.69,0.00020815,2]
[363500667,1748743844686,-430.0,0.00020816,2]
[363500669,1748743844695,-430.0,0.0002086,2]
[363500671,1748743844705,-571.3,0.0002086,2]
[363500673,1748743844715,-430.0,0.00020956,2]
[363500674,1748743844725,-430.0,0.00020956,2]
[363500676,1748743844735,-430.0,0.00020956,2]
[363500678,1748743844744,-552.18106468,0.00020956,2]
[363500680,1748743844754,-430.0,0.00020956,2]
[363500682,1748743844765,-430.0,0.00020956,2]
[363500684,1748743844774,-674.77,0.00020956,2]
[363500686,1748743844784,-966.15809445,0.00021003,4]
[363500688,1748743844793,-488.19,0.00021053,2]
[363500690,1748743844803,-783.77,0.00021053,2]
[363500692,1748743844813,-585.5,0.00021053,2]
[363500694,1748743844823,-755.95,0.00021053,2]
[363500696,1748743844832,-548.91,0.00021053,2]
[363500698,1748743844841,-461.50771977,0.0002106,2]
[363500700,1748743844851,-500.0,0.0002106,2]
[363500702,1748743844861,-1303.12,0.00021089,2]
[363500704,1748743844870,-430.0,0.00021089,2]
[363500706,1748743844880,-460.44379858,0.00021089,2]
[363500708,1748743844889,-430.0,0.00021089,2]
[363500710,1748743844904,-430.0,0.00021089,2]
[363500712,1748743844914,-430.0,0.00021089,2]
[363500714,1748743844924,-430.0,0.00021089,2]
[363500716,1748743844934,-430.0,0.00021089,2]
[363500718,1748743844945,-430.0,0.00021089,2]
[363500720,1748743844955,-430.0,0.00021089,2]
[363500721,1748743844966,-540.82673055,0.00021089,2]
[363500723,1748743844976,-430.0,0.00021089,2]
[363500725,1748743844986,-876.69,0.00021089,2]
[363500727,1748743844994,-430.0,0.0002109,2]